Cogmind - Beta 17 @@@ ROGUE MODE // 2026.07.07 @ 15:27:06 Player: the Result: Destroyed by D-53 Grenadier with Mini Grenade Launcher Performance ------------- Evolutions (3) 1500 Regions Visited (10) 2000 Robots Destroyed (136) 680 Value Destroyed (3877) 3877 Prototype IDs (46) 920 Alien Tech Used (0) 0 Bonus (694) 694 TOTAL SCORE: 9671 Bonus ------- High Alert Combat Kills 94 Aligned with FarCom 300 Met Data Miner 300 Cogmind --------- Core Integrity 0/700 Matter 202/300 Energy 99/100 System Corruption 3% Temperature Cool (0) Movement Core (50) Location -6/Proximity Caves Parts ------- > --- POWER (1) -------- (None) > --- PROPULSION (4) --- (None) > --- UTILITY (6) ------ (None) > --- WEAPON (2) ------- (None) > --- INVENTORY (5) ---- Advanced Energy Well (500) Advanced Particle Charger Graphene Brace Missile Launcher Katana Peak State ------------ > --- POWER ------------ Improved Deuterium Engine > --- PROPULSION ------- Improved Carbon-fiber Leg Enhanced Flexi-carbon Leg Enhanced Flexi-carbon Leg Enhanced Flexi-carbon Leg > --- UTILITY ---------- Improved Cooling System High-capacity Storage Unit Improved Signal Interpreter Advanced Particle Charger Layered Medium Armor Plating Hacking Suite > --- WEAPON ----------- Neutron Cannon Neutron Cannon > --- INVENTORY -------- Light Angular Momentum Engine Improved Cooling System Coolant Injector Advanced Energy Well Advanced Energy Well Improved Sensor Array Seismic Detector Advanced Particle Charger Advanced Particle Charger Weapon Cycler Transmission Jammer Layered Medium Armor Plating Layered Medium Armor Plating Graphene Brace Hacking Suite Cooled Pulse Rifle Cooled Pulse Rifle Neutron Cannon Missile Launcher Katana [Rating: 75] Favorites ----------- Power Improved Deuterium Engine Engine Improved Deuterium Engine Power Core Light Nuclear Core Propulsion Improved Carbon-fiber Leg Treads Light Treads Leg Improved Carbon-fiber Leg Utility Seismic Detector Device Seismic Detector Storage High-capacity Storage Unit Processor Improved Signal Interpreter Hackware Hacking Suite Protection Improved Medium Armor Plating Weapon Assault Rifle Energy Gun Cooled Pulse Rifle Energy Cannon Neutron Cannon Ballistic Gun Assault Rifle Ballistic Cannon Heavy Assault Cannon Launcher Missile Launcher Special Weapon Mining Laser Impact Weapon Hammer Slashing Weapon Katana Build | -11 -10 -10 -10 -9 -8 -7 -7 -7 -7 -6 ------- Run | Yrd Mat Min Exi Min Mat Fac Low Low Dat Pro Slots Evolved 6 | . . . . . 4 2 . . . . Power . | . . . . . . . . . . . Propulsion 2 | . . . . . 2 . . . . . Utility 4 | . . . . . 2 2 . . . . Weapon . | . . . . . . . . . . . Parts Attached 98 | 8 8 1 . 10 34 8 6 3 16 4 Power 10 | 1 . . . 4 2 1 . . 1 1 Engine 9 | 1 . . . 4 1 1 . . 1 1 Core 1 | . . . . . 1 . . . . . Reactor . | . . . . . . . . . . . Propulsion 24 | 2 1 . . 2 12 . 1 1 5 . Treads 13 | 2 1 . . 2 8 . . . . . Leg 11 | . . . . . 4 . 1 1 5 . Wheel . | . . . . . . . . . . . Hover . | . . . . . . . . . . . Flight . | . . . . . . . . . . . Utility 33 | 2 3 . . 1 10 2 4 2 7 2 Device 14 | 1 1 . . 1 5 . 2 1 2 1 Storage 4 | 1 2 . . . . . . . 1 . Processor 3 | . . . . . 1 . 1 . 1 . Hackware 2 | . . . . . 1 1 . . . . Protection 10 | . . . . . 3 1 1 1 3 1 Artifact . | . . . . . . . . . . . Weapon 31 | 3 4 1 . 3 10 5 1 . 3 1 Energy Gun 7 | . . . . . 4 2 1 . . . Energy Cannon 5 | . 1 . . . 1 . . . 2 1 Ballistic Gun 9 | 3 1 . . 2 3 . . . . . Ballistic Cannon 2 | . . . . 1 1 . . . . . Launcher 4 | . . 1 . . . 3 . . . . Special Weapon 1 | . 1 . . . . . . . . . Impact Weapon 2 | . 1 . . . 1 . . . . . Slashing Weapon 1 | . . . . . . . . . 1 . Piercing Weapon . | . . . . . . . . . . . Special Melee Weapon . | . . . . . . . . . . . Unidentified Prototypes 11 | . . . . . 4 4 . . 3 . Corrupted Parts 4 | . . . . . 4 . . . . . System Corruption 12 | . . . . . 12 . . . . . Parts Lost 24 | . 1 . . 1 2 . 3 1 7 9 Power 4 | . . . . . 1 . . . 1 2 Propulsion 8 | . . . . 1 . . 1 1 3 2 Utility 7 | . . . . . . . 1 . 3 3 Weapon 5 | . 1 . . . 1 . 1 . . 2 Highest Loss Streak 7 | . 1 . . 1 1 . 1 1 3 7 To Critical Strikes 1 | . . . . 1 . . . . . . Average Backups 16 | 2 10 15 15 14 18 19 18 15 15 19 Power . | . 1 1 1 . . 1 1 1 . . Propulsion 2 | . 1 3 3 3 4 3 2 2 1 . Utility 7 | . 2 4 4 4 9 11 11 10 10 13 Weapon 4 | 1 4 7 7 7 5 3 3 2 2 4 Tool/Special . | . . . . . . . . . . . Unused Backups 24 | . . . . 2 12 2 . . 2 6 Power . | . . . . . . . . . . . Propulsion 4 | . . . . . 4 . . . . . Utility 14 | . . . . . 5 1 . . 2 6 Weapon 6 | . . . . 2 3 1 . . . . Tool/Special . | . . . . . . . . . . . Average Slot Usage (%) 92 | . 100 100 100 100 97 75 76 99 87 96 Engine 9 | . 14 14 14 14 7 7 7 7 6 6 Treads 15 | . 28 28 28 28 29 . . . . . Leg 13 | . . . . . 6 30 25 29 29 29 Device 12 | . 14 14 14 14 10 14 14 14 4 15 Storage 10 | . 14 14 14 14 9 7 7 7 7 6 Processor 3 | . . . . . 5 . 1 7 13 6 Hackware 4 | . . . . . 8 6 7 7 7 6 Protection 1 | . . . . . 1 . 1 7 6 6 Energy Gun 2 | . . . . . 5 . 4 14 . . Energy Cannon 1 | . . . . . 3 . . . 1 14 Ballistic Gun 10 | . 21 27 28 26 7 . . . . . Ballistic Cannon 1 | . . . . 1 . 6 4 . . . Peak Build Rating 75 | 7 8 8 8 12 60 68 68 54 74 75 Average Rating 34 | 6 7 8 8 9 31 64 60 49 49 67 On Entrance 30 | . 7 8 8 8 12 60 65 50 49 71 Avg Prop Armor Cover (%) . | . . . . . . . . . . . Naked Turns 13 | . . . . . . . . . . 13 Heaviest Build 86 | 12 29 28 27 34 73 86 86 68 79 84 Greatest Support 102 | 40 40 40 40 40 84 72 72 72 102 102 Greatest Overweight (x) 1 | . . . . . 1 1 1 . 1 1 Average Overweight (x) . | . . . . . . . . . . . Largest Inventory Capacity 20 | 8 20 15 15 15 20 20 20 20 20 20 Average Capacity 17 | 7 14 15 15 15 19 20 20 20 20 19 Most Carried 20 | 4 15 15 15 15 20 20 20 16 20 20 Average Carried 16 | 2 10 15 15 14 19 19 18 15 15 19 Final Capacity 20 | 8 15 15 15 15 20 20 20 20 20 5 Final Carried 20 | 4 15 15 15 15 19 20 15 15 20 5 Class Distribution -------------------- 43% | Mutant 35% | Scavenger-Mutant 20% | Scavenger-Skirmisher Dominant Class ---------------- Mutant | -10/Materials Mutant | -10/Mines Mutant | -10/Exiles Mutant | -9/Mines Scavenger-Mutant | -8/Materials Scavenger-Skirmisher | -7/Factory Scavenger-Skirmisher | -7/Lower Caves Scavenger-Mutant | -7/Lower Caves Scavenger-Mutant | -7/Data Miner Scavenger-Mutant | -6/Proximity Caves Resources | -11 -10 -10 -10 -9 -8 -7 -7 -7 -7 -6 ----------- Run | Yrd Mat Min Exi Min Mat Fac Low Low Dat Pro Matter Collected 3850 | 303 490 95 . 394 750 702 444 237 197 238 Remotely . | . . . . . . . . . . . Salvage Created 4854 | 235 519 109 . 337 1624 751 249 275 381 374 Parts 285 | 27 46 5 . 24 100 38 7 17 13 8 Haulers Intercepted 10 | . 2 . . . 5 3 . . . . Recyclers Shooed 9 | . 1 2 . . . 6 . . . . Parts Field Recycled . | . . . . . . . . . . . Retrieved Matter . | . . . . . . . . . . . Parts Self-Destructed 30 | . . . . . . . 5 19 . 6 Prevented . | . . . . . . . . . . . Parts Restored . | . . . . . . . . . . . Kills | -11 -10 -10 -10 -9 -8 -7 -7 -7 -7 -6 ------- Run | Yrd Mat Min Exi Min Mat Fac Low Low Dat Pro Combat Hostiles Destroyed 94 | . 12 5 . 11 28 9 6 8 4 11 Melee 4 | . . . . . . . . . 4 . Guns 50 | . 11 2 . 11 21 . 1 4 . . Cannons 20 | . 1 . . . 6 6 2 . . 5 AOE 20 | . . 3 . . 1 3 3 4 . 6 Classes Destroyed 18 | 2 6 1 . 2 4 1 1 . . 1 Worker 5 | . 2 . . . 2 1 . . . . Builder 3 | . . . . . 1 2 . . . . Tunneler 11 | 9 . 1 . 1 . . . . . . Hauler 10 | . 2 . . . 5 3 . . . . Recycler 10 | 1 . . . . 3 6 . . . . Operator 3 | . 1 . . . 1 1 . . . . Watcher 3 | . 2 . . . 1 . . . . . Swarmer 36 | . 6 . . 6 11 4 3 4 . 2 Grunt 26 | . 6 2 . 2 7 3 2 1 . 3 Brawler 5 | . . . . 2 . . . 1 . 2 Duelist 1 | . . . . . . . . . . 1 Sentry 6 | . . . . 1 3 . . . . 2 Specialist 4 | . . . . . 4 . . . . . Hunter 4 | . . . . . 2 . . 2 . . Programmer 2 | . . . . . . 2 . . . . Heavy 1 | . . . . . 1 . . . . . Behemoth 2 | . . . . . . . 1 . . 1 Enhanced Grunt 4 | . . . . . . . . . 4 . Assembled 3 | . . 3 . . . . . . . . Best Kill Streak 9 | 4 5 4 . 3 5 9 3 4 1 9 Combat Bots Only 9 | . 4 3 . 3 4 4 3 4 1 9 Max Kills in Single Turn 5 | 2 2 2 . 1 2 5 2 3 1 2 Gunslinging . | . . . . . . . . . . . Exploded 3 | . . 2 . . 1 3 2 3 . 2 Melee 1 | . . . . . . . . . 1 . Uniques/NPCs Destroyed . | . . . . . . . . . . . Combat | -11 -10 -10 -10 -9 -8 -7 -7 -7 -7 -6 -------- Run | Yrd Mat Min Exi Min Mat Fac Low Low Dat Pro Hostile Shots Fired 489 | . 56 8 . 34 136 40 33 23 32 127 Missed 150 | . 14 4 . 11 41 18 10 5 6 41 Hits 339 | . 42 4 . 23 95 22 23 18 26 86 Melee 5 | . . . . . . . . . . 5 Projectile 334 | . 42 4 . 23 95 22 23 18 26 81 AOE 11 | . . . . . . . . . . 11 Critical Strikes 11 | . . . . 1 4 . 1 . . 5 Part Disruptions 1 | . . . . . . . . . 1 . Damage Taken 6368 | . 365 54 . 208 1561 395 445 269 1171 1900 Core 972 | . 33 17 . 40 171 17 53 22 186 433 Absorbed by Shields . | . . . . . . . . . . . Ignored by Resistances 181 | . . . . . 139 . 14 28 . . Core Remaining (%) 77 | 100 . . . 64 68 . . . . . Volleys Fired 378 | 18 57 15 1 34 108 72 23 17 2 31 Largest 2 | 2 2 2 1 2 2 1 2 2 2 2 Hottest 180 | 40 100 40 20 68 121 50 50 40 180 180 Shots Fired 597 | 36 103 28 1 64 175 72 28 32 4 54 Gun 365 | 36 90 26 1 54 121 . 7 29 . 1 Cannon 206 | . 2 . . 10 54 70 18 . 4 48 Launcher 15 | . . 2 . . . 2 3 3 . 5 Special 11 | . 11 . . . . . . . . . Kinetic 374 | 36 90 26 1 64 69 70 18 . . . Thermal 161 | . 13 . . . 59 . 7 29 4 49 Explosive 15 | . . 2 . . . 2 3 3 . 5 Electromagnetic 47 | . . . . . 47 . . . . . Robot Hit Streak 12 | 11 6 8 . 8 12 6 8 8 . 9 Robot Miss Streak 6 | 1 6 2 . 3 4 2 3 2 . 2 Penetration Max 1 | . . . . 1 1 . . . . . Secondary Targets 4 | . 1 1 . 2 . . . . . . Max Gunslinging Chain 1 | . 1 1 . 1 . . . . . . Shots Hit Robots 361 | 20 45 17 . 39 112 33 15 23 29 28 Core Hits 220 | 13 29 9 . 19 64 23 8 12 17 26 Critical Kills . | . . . . . . . . . . . Critical Parts Destroyed 6 | . . . . 4 2 . . . . . Critical Strikes 20 | . . . . 4 4 2 3 . 7 . Burn 2 | . . . . . 1 . 1 . . . Destroy 6 | . . . . 4 2 . . . . . Blast 5 | . . . . . 1 2 2 . . . Sever 7 | . . . . . . . . . 7 . Melee Attacks 69 | . 5 . . . 2 . . . 62 . Impact 7 | . 5 . . . 2 . . . . . Slashing 62 | . . . . . . . . . 62 . Piercing . | . . . . . . . . . . . Sneak Attacks 1 | . . . . . . . . . 1 . Combat Hostiles . | . . . . . . . . . . . Follow-up Attacks . | . . . . . . . . . . . Damage Inflicted 10772 | 253 582 310 . 531 2553 2143 819 756 923 1902 Guns 3346 | 253 544 188 . 385 1469 . 77 394 . 36 Cannons 4320 | . 19 . . 143 884 1663 543 . . 1068 Explosions 2094 | . . 116 . . 166 453 199 362 . 798 Melee 923 | . . . . . . . . . 923 . Ramming 89 | . 19 6 . 3 34 27 . . . . Kinetic 4520 | 253 544 188 . 528 801 1663 543 . . . Thermal 2652 | . 19 . . . 997 61 77 394 . 1104 Explosive 1867 | . . 116 . . . 392 199 362 . 798 Electromagnetic 721 | . . . . . 721 . . . . . Impact . | . . . . . . . . . . . Slashing 923 | . . . . . . . . . 923 . Piercing . | . . . . . . . . . . . Highest Corruption 12 | . . . . . 12 3 3 3 3 3 Average Corruption 3 | . . . . . 10 3 3 3 3 3 Corruption Purged . | . . . . . . . . . . . Corruption Blocked . | . . . . . . . . . . . Effects 68 | . . . . . 1 5 23 17 13 9 Message Errors 21 | . . . . . . 2 7 7 4 1 Matter Fused 10 | . . . . . 1 . 2 3 3 1 Heat Flow Errors 9 | . . . . . . 1 3 3 2 . Energy Discharges 10 | . . . . . . 1 6 2 1 . Parts Rejected 1 | . . . . . . . . . . 1 Data Loss (minor) 9 | . . . . . . . 3 . 3 3 Data Loss (major) 3 | . . . . . . 1 . 1 . 1 Misfires 3 | . . . . . . . 2 1 . . Alerts 2 | . . . . . . . . . . 2 Overload Shots 1 | . . . . . . . . . . 1 Overflow Damage 348 | . . 21 . . 53 170 41 49 . 14 Projectiles 230 | . . . . . 30 149 41 . . 10 Explosions 118 | . . 21 . . 23 21 . 49 . 4 Melee . | . . . . . . . . . . . Knockbacks 13 | . . . . 2 2 7 2 . . . Impact 1 | . . . . . 1 . . . . . Kinetic 12 | . . . . 2 1 7 2 . . . Secondary . | . . . . . . . . . . . Self-Inflicted Damage 130 | . . . . . 49 45 36 . . . Shots 4 | . . . . . 2 1 1 . . . Rammed 11 | . 5 2 . 1 3 . . . . . Targets Rammed 14 | . 5 2 . 1 4 2 . . . . Kicked 2 | . . . . . . 2 . . . . Crushed 1 | . . . . . 1 . . . . . Highest Temperature 270 | . 80 9 . 118 270 199 152 208 245 266 Average Temperature 78 | . 21 6 . 42 75 52 38 82 116 130 Received Heat Transfer 1119 | . 66 24 . 48 315 99 144 27 . 396 Effects 1 | . . . . . 1 . . . . . Interference 1 | . . . . . 1 . . . . . Siege Activations . | . . . . . . . . . . . Martial Activations . | . . . . . . . . . . . Shielding Activations . | . . . . . . . . . . . Robots Disrupted . | . . . . . . . . . . . Combat Hostiles . | . . . . . . . . . . . Robots Corrupted . | . . . . . . . . . . . Combat Hostiles . | . . . . . . . . . . . Parts Fried 8 | . . . . . 8 . . . . . Impact Corruptions . | . . . . . . . . . . . Robots Melted . | . . . . . . . . . . . Combat Hostiles . | . . . . . . . . . . . Parts Melted 6 | . . . . . 3 . 2 1 . . Heat Transferred 2853 | . 37 . . . 1717 50 222 777 . 50 Parts Sabotaged . | . . . . . . . . . . . Parts Stolen . | . . . . . . . . . . . Parts Stripped . | . . . . . . . . . . . Power Chain Reactions 3 | . . . . . 3 . . . . . Alert | -11 -10 -10 -10 -9 -8 -7 -7 -7 -7 -6 ------- Run | Yrd Mat Min Exi Min Mat Fac Low Low Dat Pro Maximum Alert Level 2 | . . . . . 2 2 . . . . Low Security (%) 79 | 100 100 100 . 100 72 22 . . . . Level 1 12 | . . . . . 22 36 . . . . Level 2 8 | . . . . . 4 41 . . . . Level 3 . | . . . . . . . . . . . Level 4 . | . . . . . . . . . . . Level 5 . | . . . . . . . . . . . High Security . | . . . . . . . . . . . Max Security . | . . . . . . . . . . . Peak Influence 516 | 20 138 50 . 90 413 516 . . . . Initial 174 | . 13 40 . . . 174 . . . . Average 114 | 3 51 10 . 18 139 356 . . . . Influence Increases 3097 | 50 441 64 . 286 886 740 185 200 . 245 Destroy 0b10 Robot/C 1740 | . 240 40 . 220 560 180 120 160 . 220 Destroy 0b10 Robot/NC 230 | 50 35 5 . 5 65 65 5 . . . Destroy Leader 376 | . 58 10 . 40 142 46 30 40 . 10 Successful Hack 41 | . 34 . . . . 7 . . . . Select Force Hacks 60 | . 60 . . . . . . . . . Disable Machine 165 | . . . . . 30 135 . . . . Destroy Structure 165 | . 14 9 . 6 29 107 . . . . Lose Combat Pursuer 120 | . . . . 15 60 . 30 . . 15 Active Sensor Use 200 | . . . . . . 200 . . . . Influence Decreases 3090 | 30 355 170 . 286 502 638 668 203 . 238 Entered New Map 465 | . 7 66 . . . 210 180 2 . . Time Decay 2421 | 30 328 104 . 276 482 428 468 191 . 114 Lost Part 154 | . 10 . . 10 20 . 20 10 . 84 Lost Ally 50 | . 10 . . . . . . . . 40 Squads Dispatched 15 | . 3 . . . 5 6 . . . 1 Investigation 4 | . 2 . . . . 2 . . . . Extermination 2 | . . . . . . 2 . . . . Reinforcement 7 | . 1 . . . 4 2 . . . . Assault 1 | . . . . . . . . . . 1 Garrison 1 | . . . . . 1 . . . . . Intercept . | . . . . . . . . . . . Searches Triggered . | . . . . . . . . . . . Construction Impeded 1 | . . . . . . 1 . . . . Haulers Reinforced 1 | . . . . . . 1 . . . . Active Scanning Responses 2 | . . . . . . 2 . . . . Cargo Convoy Interrupts . | . . . . . . . . . . . Stealth | -11 -10 -10 -10 -9 -8 -7 -7 -7 -7 -6 --------- Run | Yrd Mat Min Exi Min Mat Fac Low Low Dat Pro Distress Signals 16 | . . . . . 3 2 . . . 11 Communications Jammed . | . . . . . . . . . . . Distress Signals . | . . . . . . . . . . . Times Spotted 131 | . 19 5 . 12 39 17 8 7 4 20 Peak Tracking Total 9 | . 3 3 9 3 5 5 3 4 2 9 Tactical Retreats 8 | . . . . 1 3 . 2 . 1 1 Traps | -11 -10 -10 -10 -9 -8 -7 -7 -7 -7 -6 ------- Run | Yrd Mat Min Exi Min Mat Fac Low Low Dat Pro Traps Triggered . | . . . . . . . . . . . Indirectly . | . . . . . . . . . . . Trap Hack Attempts . | . . . . . . . . . . . Triggered . | . . . . . . . . . . . Disarmed . | . . . . . . . . . . . Reprogrammed . | . . . . . . . . . . . Reused . | . . . . . . . . . . . Traps Extracted . | . . . . . . . . . . . Installed . | . . . . . . . . . . . Triggered . | . . . . . . . . . . . Machines | -11 -10 -10 -10 -9 -8 -7 -7 -7 -7 -6 ---------- Run | Yrd Mat Min Exi Min Mat Fac Low Low Dat Pro Machines Disabled 15 | . 1 . 1 . 2 9 . . 1 1 Max in Single Turn 4 | . 1 . 1 . 1 4 . . 1 1 Garrison Access 1 | . . . . . 1 . . . . . Machines Repaired . | . . . . . . . . . . . Machines Dismantled . | . . . . . . . . . . . Machines Sabotaged . | . . . . . . . . . . . Overloaded Fab Kills . | . . . . . . . . . . . Hacking | -11 -10 -10 -10 -9 -8 -7 -7 -7 -7 -6 --------- Run | Yrd Mat Min Exi Min Mat Fac Low Low Dat Pro Machines Accessed 17 | . 7 . 2 . 1 2 2 . 3 . Terminals 6 | . 5 . . . . 1 . . . . Fabricators 1 | . . . . . . 1 . . . . Repair Stations . | . . . . . . . . . . . Recycling Units 2 | . 2 . . . . . . . . . Scanalyzers . | . . . . . . . . . . . Garrison Access 1 | . . . . . 1 . . . . . Total Hacks 51 | . 17 . 2 . 1 3 2 . 26 . Successful 46 | . 13 . 2 . 1 2 2 . 26 . Failed 5 | . 4 . . . . 1 . . . . Catastrophic . | . . . . . . . . . . . Database Lockouts . | . . . . . . . . . . . Manual 20 | . 17 . 1 . . 2 . . . . Terminals 17 | . 15 . . . . 2 . . . . Fabricators 1 | . . . . . . 1 . . . . Repair Stations . | . . . . . . . . . . . Recycling Units 2 | . 2 . . . . . . . . . Scanalyzers . | . . . . . . . . . . . Garrison Access 1 | . . . . . 1 . . . . . Terminal Hacks 33 | . 2 . 2 . . 1 2 . 26 . Record 7 | . . . 1 . . . . . 6 . Part Schematic 9 | . . . . . . . . . 9 . Robot Schematic 8 | . . . . . . . . . 8 . Robot Analysis 1 | . 1 . . . . . . . . . Prototype ID Bank 3 | . . . . . . . . . 3 . Open Door 2 | . . . . . . . 2 . . . Branch Access Points 1 | . . . . . . 1 . . . . Terminal Index 1 | . 1 . . . . . . . . . Proto ID Catalog 1 | . . . 1 . . . . . . . Fabricator Hacks 1 | . . . . . . 1 . . . . Network Status 1 | . . . . . . 1 . . . . Repair Station Hacks . | . . . . . . . . . . . Recycling Unit Hacks . | . . . . . . . . . . . Scanalyzer . | . . . . . . . . . . . Garrison Access Hacks 1 | . . . . . 1 . . . . . Seal Access 1 | . . . . . 1 . . . . . Unauthorized Hacks 11 | . 11 . . . . . . . . . Terminals 9 | . 9 . . . . . . . . . Assimilate 1 | . 1 . . . . . . . . . Botnet 2 | . 2 . . . . . . . . . Operators 1 | . 1 . . . . . . . . . Skim 5 | . 5 . . . . . . . . . Fabricators . | . . . . . . . . . . . Repair Stations . | . . . . . . . . . . . Recycling Units 2 | . 2 . . . . . . . . . Tunnel 2 | . 2 . . . . . . . . . Scanalyzers . | . . . . . . . . . . . Garrison Access . | . . . . . . . . . . . Data Cores Recovered 1 | . . . . . . 1 . . . . Used . | . . . . . . . . . . . Hacking Detections 4 | . 3 . . . . 1 . . . . Full Trace Events . | . . . . . . . . . . . Feedback Events . | . . . . . . . . . . . Feedback Blocked . | . . . . . . . . . . . Robot Schematics Acquired 8 | . . . . . . . . . 8 . Robots Built . | . . . . . . . . . . . Authchips . | . . . . . . . . . . . Time . | . . . . . . . . . . . Total Robot Build Rating . | . . . . . . . . . . . Part Schematics Acquired 9 | . . . . . . . . . 9 . Parts Built . | . . . . . . . . . . . Authchips . | . . . . . . . . . . . Time . | . . . . . . . . . . . Total Part Build Rating . | . . . . . . . . . . . Part Studies Acquired . | . . . . . . . . . . . Parts Repaired . | . . . . . . . . . . . Time . | . . . . . . . . . . . Parts Recycled . | . . . . . . . . . . . Recycled Matter . | . . . . . . . . . . . Retrieved Matter . | . . . . . . . . . . . Retrieved Components . | . . . . . . . . . . . Parts Scanalyzed . | . . . . . . . . . . . Part Schematics Acquired . | . . . . . . . . . . . Parts Damaged . | . . . . . . . . . . . Bothacking | -11 -10 -10 -10 -9 -8 -7 -7 -7 -7 -6 ------------ Run | Yrd Mat Min Exi Min Mat Fac Low Low Dat Pro Used RIF Installer . | . . . . . . . . . . . Robots Hacked . | . . . . . . . . . . . Non-combat . | . . . . . . . . . . . Combat . | . . . . . . . . . . . Robot Hacks Applied . | . . . . . . . . . . . Relay Couplers Released . | . . . . . . . . . . . Fabnet Peak Effective % . | . . . . . . . . . . . Robots Rewired 2 | . . . . . . . . . . 2 Allies Hacked . | . . . . . . . . . . . Hacks Repelled . | . . . . . . . . . . . Allies | -11 -10 -10 -10 -9 -8 -7 -7 -7 -7 -6 -------- Run | Yrd Mat Min Exi Min Mat Fac Low Low Dat Pro Total Allies 3 | . 1 . . . . . . . . 2 Largest Group 2 | . 1 . . . . . . . . 2 Highest-Rated Group 58 | . 10 . . . . . . . . 58 Highest-Rated Ally 29 | . 10 . . . . . . . . 29 Total Orders . | . . . . . . . . . . . Ally Attacks 2 | . . . . . . . . . . 2 Total Damage . | . . . . . . . . . . . Kills . | . . . . . . . . . . . Allies Corrupted . | . . . . . . . . . . . Allies Melted . | . . . . . . . . . . . Intel | -11 -10 -10 -10 -9 -8 -7 -7 -7 -7 -6 ------- Run | Yrd Mat Min Exi Min Mat Fac Low Low Dat Pro Active Infowar (turns) 9422 | 115 1480 511 574 1328 1635 1047 1369 687 158 518 Optics 1078 | . . . . . 1078 . . . . . Sensors 1606 | . . . . . . . 256 681 158 511 A.S.S. 2182 | . . . . . 25 1047 1110 . . . Seismic 9103 | 115 1480 511 574 1328 1516 1014 1327 683 106 449 Jamming 1 | . . . . . 1 . . . . . Robot Analysis Total 1 | . 1 . . . . . . . . . Derelict Logs Recovered 5 | . . . . 1 . . 1 1 . 2 Drone Launches . | . . . . . . . . . . . Drone Recoveries . | . . . . . . . . . . . Exploration | -11 -10 -10 -10 -9 -8 -7 -7 -7 -7 -6 ------------- Run | Yrd Mat Min Exi Min Mat Fac Low Low Dat Pro Turns Passed 10426 | 215 1480 511 574 1328 1707 1047 1369 738 796 661 Spaces Moved 5706 | 45 739 287 358 743 804 584 824 532 418 372 Core 36 | 9 . . . . . . . . . 27 Treads 2763 | 36 739 287 358 743 600 . . . . . Legs 2907 | . . . . . 204 584 824 532 418 345 Wheels . | . . . . . . . . . . . Hover . | . . . . . . . . . . . Flight . | . . . . . . . . . . . Fastest Speed 50 | 50 160 160 160 160 120 120 120 120 120 50 Average Speed 144 | 138 160 160 160 160 149 120 154 120 127 115 Slowest Speed 241 | 160 160 160 160 160 241 190 190 120 190 190 Overloaded Moves . | . . . . . . . . . . . Propulsion Burnouts . | . . . . . . . . . . . Robots Hopped . | . . . . . . . . . . . Potential Cave-ins . | . . . . . . . . . . . Cave-ins Triggered . | . . . . . . . . . . . Exploration Rate (%) 61 | 3 84 64 70 95 64 22 97 61 80 40 Regions Visited 10 Branch Regions 7 Pre-discovered Areas 6 | . 2 . 1 1 . . 1 . 1 . Known Exits Taken 7 | . 1 1 . . 1 1 1 1 1 . Unknown Exits Taken 3 | 1 . . 1 1 . . . . . . Scrap Searched 11 | . . . . 3 . . 4 2 . 2 Spaces Dug 122 | . 14 . . . 1 76 11 . 6 14 Terrain Destroyed 286 | . 16 11 . 6 24 114 37 28 6 44 Melee 12 | . 5 . . . 1 . . . 6 . Projectile 104 | . 11 . . 6 13 45 10 . . 19 AOE 170 | . . 11 . . 10 69 27 28 . 25 Terrain Rammed . | . . . . . . . . . . . Walls Destroyed . | . . . . . . . . . . . Machines Disabled . | . . . . . . . . . . . Actions | -11 -10 -10 -10 -9 -8 -7 -7 -7 -7 -6 --------- Run | Yrd Mat Min Exi Min Mat Fac Low Low Dat Pro Total 7130 | 162 902 311 358 830 1142 825 881 598 589 532 Wait 567 | 89 67 5 . 18 84 127 21 32 37 87 Move 5696 | 44 738 286 357 742 803 583 823 531 417 372 Hop . | . . . . . . . . . . . Pick Up 103 | 3 14 . . 8 39 9 1 1 26 2 Fast Attach 26 | 7 . . . . 6 9 . . 2 2 Attach 51 | . 1 . . 1 18 3 6 1 15 6 Detach 11 | . . . . . 4 1 . . 6 . Swap 110 | 1 10 3 . 12 32 3 7 16 6 20 Drop 96 | . 5 . . 14 42 16 . . 16 3 Fire 378 | 18 57 15 1 34 108 72 23 17 2 31 Melee 69 | . 5 . . . 2 . . . 62 . Ram . | . . . . . . . . . . . Kick 2 | . . . . . . 2 . . . . Crush 12 | . 5 2 . 1 4 . . . . . Escape Stasis . | . . . . . . . . . . . Rewire 9 | . . . . . . . . . . 9 Trap . | . . . . . . . . . . . Miscellaneous . | . . . . . . . . . . . Route ------- -11/Scrapyard -10/Materials (discovered 6 exits: *Mat x3 / *Min x2 / Sub) -10/Mines (discovered 3 exits: *Mat / *Exi / Sub) -10/Exiles -9/Mines (discovered 2 exits: *Mat x2) -8/Materials (discovered 3 exits: *Fac x2 / [*Sto]) -7/Factory (discovered 3 exits: *Fac / *Low x2) -7/Lower Caves -7/Lower Caves (discovered 2 exits: *Fac / *Dat) -7/Data Miner -6/Proximity Caves History --------- Turn | Location | Event 58 | -11/Scrapyard | Discovered new exit (range 15) 216 | -11/Scrapyard | Entered Materials 309 | -10/Materials | Build established: Mutant 396 | -10/Materials | Discovered new exit (range 16) 574 | -10/Materials | Discovered new exit (range 11) 796 | -10/Materials | Discovered new exit (range 11) 893 | -10/Materials | Identified exit to Materials 893 | -10/Materials | Identified exit to Mines 958 | -10/Materials | Learned location of 1 exit from Storage 1013 | -10/Materials | Learned Storage stockpile data 1115 | -10/Materials | Identified exit to Subcaves 1152 | -10/Materials | Learned 2 Mines zone layouts 1199 | -10/Materials | Learned location of 1 exit from Storage 1256 | -10/Materials | Learned 2 Mines zone layouts 1696 | -10/Materials | Entered Mines 1697 | -10/Mines | Identified exit to Exiles 2012 | -10/Mines | Assembled infested the area 2201 | -10/Mines | Deemed a non-threat by the Exiles lab entrance 2207 | -10/Mines | Entered Exiles 2247 | -10/Exiles | Met 8R-AWN 2273 | -10/Exiles | Met EX-HEX 2340 | -10/Exiles | Met EX-DEC 2343 | -10/Exiles | Learned location of Zion (-6) 2380 | -10/Exiles | Met EX-BIN 2406 | -10/Exiles | Aligned with FarCom system 2407 | -10/Exiles | Given EX-Vault access code 2451 | -10/Exiles | Opened EX-Vault 2492 | -10/Exiles | Warned to stay clear of 0b10 Research branches 2705 | -10/Exiles | Discovered new exit (range 14) 2752 | -10/Exiles | Attacked by the Exiles 2781 | -10/Exiles | Entered Mines 2963 | -9/Mines | Learned Materials trap positions 2974 | -9/Mines | A weapon hastily lodged in a ceiling crevice suddenly fell to the ground 3159 | -9/Mines | Found a hidden stash of uninstalled traps 3725 | -9/Mines | Discovered new exit (range 6) 3788 | -9/Mines | Discovered new exit (range 9) 3884 | -9/Mines | Joined a pair of Derelicts in attacking an 0b10 outpost 3950 | -9/Mines | Received a Rocket Launcher from a helpful Derelict 4048 | -9/Mines | Learned location of Storage (-8) 4109 | -9/Mines | Entered Materials 4109 | -8/Materials | Evolved 4 slots: Propulsion x2, Utility x2 4110 | -8/Materials | Loaded intel: 14 trap records 4209 | -8/Materials | Build established: Scavenger-Mutant 4603 | -8/Materials | Discovered new exit (range 14) 4944 | -8/Materials | Discovered new exit (range 7) 4997 | -8/Materials | Garrison activated, responded to threat 5061 | -8/Materials | Discovered new exit (range 17) 5155 | -8/Materials | Build established: Mutant 5474 | -8/Materials | Found Corrupted Prototype Device 5780 | -8/Materials | Build established: Scavenger-Mutant 5791 | -8/Materials | Identified Active Sensor Suite 5792 | -8/Materials | System corruption reached 10% 5797 | -8/Materials | Identified exit to Factory 5816 | -8/Materials | Entered Factory 5816 | -7/Factory | Evolved 2 slots: Utility x2 6093 | -7/Factory | Build established: Scavenger-Skirmisher 6098 | -7/Factory | Identified exit to Lower Caves 6334 | -7/Factory | Discovered new exit (range 4) 6337 | -7/Factory | Identified exit to Factory 6863 | -7/Factory | Entered Lower Caves 7115 | -7/Lower Caves | Spotted B-75 Beast 7128 | -7/Lower Caves | Destroyed B-75 Beast 8220 | -7/Lower Caves | Discovered new exit (range 5) 8225 | -7/Lower Caves | Identified exit to Lower Caves 8232 | -7/Lower Caves | Entered another Lower Caves area 8277 | -7/Lower Caves | Discovered exit to Factory (range 16) 8280 | -7/Lower Caves | Build established: Scavenger-Mutant 8384 | -7/Lower Caves | Learned 8 Factory zone layouts 8840 | -7/Lower Caves | Discovered new exit (range 12) 8969 | -7/Lower Caves | Identified exit to Data Miner 8970 | -7/Lower Caves | Entered Data Miner 8970 | -7/Data Miner | Discovered new exit (range 6) 8994 | -7/Data Miner | Met Data Miner 9018 | -7/Data Miner | Learned location of Section 7 (-2) 9018 | -7/Data Miner | Acquired the access code to Warlord's prototype stash 9034 | -7/Data Miner | Received God Mode back door access code from Data Miner 9128 | -7/Data Miner | Data Conduit disabled 9303 | -7/Data Miner | Lost 3 parts (1p1n1u) 9448 | -7/Data Miner | Lost 3 parts (1n2u) 9561 | -7/Data Miner | Identified exit to Proximity Caves 9766 | -7/Data Miner | Entered Proximity Caves 9862 | -6/Proximity Caves | Learned Factory emergency access door positions 9876 | -6/Proximity Caves | Learned 4 Factory zone layouts 10028 | -6/Proximity Caves | Attracted the attention of an 0b10 checkpoint 10098 | -6/Proximity Caves | Spotted B-75 Beast 10115 | -6/Proximity Caves | Destroyed B-75 Beast 10258 | -6/Proximity Caves | Attracted the attention of an 0b10 outpost 10293 | -6/Proximity Caves | Core integrity fell below 50% 10321 | -6/Proximity Caves | Destroyed 9 combat bots 10409 | -6/Proximity Caves | Core integrity fell below 20% 10414 | -6/Proximity Caves | Released all parts (8) 10427 | -6/Proximity Caves | Destroyed by D-53 Grenadier with Mini Grenade Launcher Last Messages --------------- 10375_ Hacking Suite destroyed. 10378_ System corrupted: Substantial component data lost. 10382_ Enh. Flexi-carbon Leg destroyed. 10387_ The unstable cave ceiling collapses. 10392_ Lyr. Medium Armor Plating destroyed. 10400_ Enh. Flexi-carbon Leg destroyed. 10402_ Lgt. Angular Momentum Engine destroyed. 10406_ Cld. Pulse Rifle severed. 10414_ Released Neutron Cannon. 10414_ Released Imp. Carbon-fiber Leg. 10414_ Released Imp. Signal Interpreter. 10414_ Released Hcp. Storage Unit. 10414_ Released Enh. Flexi-carbon Leg. 10414_ Released Coolant Injector. 10414_ Released Imp. Cooling System. 10414_ Released Adv. Particle Charger. 10415_ Extracted 96 energy. 10421_ M-28 Smith repairs L-41 Fighter. 10422_ G-50 Soldier suffers critical hit (Burn). Map ----- +----------------------------------------------------+ | ?????????????????????????????????????????????????? | | ?????????????????????????????????????????????????? | | ?????????????????????????????????????????????????? | | ?????????????????????????????????????????????????? | | ?????????????????????????????????????????????????? | | ?????????????????????????????????????????????????? | | ?????????????????????????????????????????????????? | | ?????????????????????????????????????????????????? | | ?????????????????????????????????????????????????? | | ?????????????????????????????????????????????????? | | ?????????????????????????????????????????????????? | | ????????????????????? ???????????????????????????? | | ?????????????????? ??????????????????????????? | | ???????????????? ??????????????????????????? | | ?????????????? ??????????????????????????? | | ?????????????? ??????????????????????????? | | ????????????? ?????????????????????????? | | ????????????? % ?????????????????????????? | | ???????????? i ????????????????????????? | | ???????????? ????????????????????????? | | ???????????? ????????????????????????? | | ??????????? ????????????????????????? | | ??????????? ????????????????????????? | | ?????????? ######??????????????????? | | ?????????? #??????????????????? | | ?????????? @ #??????????????????? | | ?????????? #??????????????????? | | ?????????? #??????????????????? | | ??????????? #??????????????????? | | ??????????? d #??????????????????? | | ?????????? #??????????????????? | | ?????????? d g #??????????????????? | | ?????????? #??????????????????? | | ?????????? #??????????????????? | | ????????????? ######### ######??????????????????? | | ??????????????????????# ###?????????????????????? | | ????????????????????### # #?????????????????????? | | ????????????????????# #?????????????????????? | | #######?????????????## g ##????????????????????? | | ##????????????## #????????????????????? | | ##???????????## ##????????????????????? | | % ##??????####### #######????????????????? | | ####???# #?## ## #????????????????? | | #"###?# ##?# #????????????????? | | " #?## #### ###????????????????? | | "###### # ###! ##??????????????????? | | ## ###" ## !!]!= ##???????????????????? | | ## ###?## ## # [![=!#####?????????????????? | | # #???###" !!!!! #?????????????????? | | # ##### %% #!#### #????????????????? | +----------------------------------------------------+ Best States ------------- Heat Dissipation 61 Coolant Potential 65 Energy Generation 18 Energy Capacity 790 Matter Stores 300 Matter Capacity 300 Sight Range 20 Robot Scan Range 20 Terrain Scan Density 10 Armor Coverage 450 Resistance: KI 30 Weapon Cycling 15 Evasion (%) 55 Core Analysis 6 Recoil Reduction 4 Particle Charging 25 Offensive Hacking 10 Item Schematics ----------------- Combat Drone Bay | -7/Data Miner | Free Lgt. Regenerative Plating | -7/Data Miner | Free Biomechanical Wings | -7/Data Miner | Free Gravity Neutralizer | -7/Data Miner | Free Antimatter Cannon | -7/Data Miner | Free Gyrokinetic Inverter | -7/Data Miner | Free Adv. Shield Generator | -7/Data Miner | Free Hvy. Phase Cannon | -7/Data Miner | Free Imp. Cryofiber Web | -7/Data Miner | Free Robot Schematics ------------------ H-55 Commando | -7/Data Miner | Free L-41 Fighter | -7/Data Miner | Free Y-54 Guardian | -7/Data Miner | Free O-24 Administrator | -7/Data Miner | Free S-27 Virus | -7/Data Miner | Free B-60 Warrior | -7/Data Miner | Free M-22 Extractor | -7/Data Miner | Free E-15 Imp | -7/Data Miner | Free Fabricated ------------ Nothing Repaired ---------- Nothing Studied --------- None Alien Tech Used ----------------- None Achievements -------------- None Challenges ------------ None Game ------ Seed ThermalGunTendrils Manual? 0 Play Time 01:13:19 Cumulative 783.7 hours Start 2026.07.07 @ 14:13:26 End 2026.07.07 @ 15:27:06 Sessions 1 Manual Loads 0 Difficulty Rogue Special Mode None Game No. 442 Rogue 442 Adventurer 0 Explorer 0 Win Type - Total 39 Types 18/3/7/2/1/2/2/2/1/1 Lore% 95 Gallery% 89 Achievement% 82 Wizard Run 0 Options --------- Layout 1 ASCII 0 Keyboard 0 Movement Numpad Keybinds 0 Fullscreen 2 Font 24/Smallcaps Map View 50x40 Zoom Use 0% Tactical HUD 1 Map Filters NONE Filters NONE Steam 1 RUN: 9c2691b4-851b-48d9-9bf7-e79d661b1723